Cogmind - Beta 16 @@@ ROGUE MODE // 2026.01.22 @ 18:21:50 Player: notme Result: Destroyed by G-34 Mercenary with Small Laser Performance ------------- Evolutions (0) 0 Regions Visited (1) 200 Robots Destroyed (12) 60 Value Destroyed (275) 275 Prototype IDs (2) 40 Alien Tech Used (0) 0 Bonus (0) 0 TOTAL SCORE: 575 Bonus ------- None Cogmind --------- Core Integrity 0/250 Matter 292/300 Energy 250/250 System Corruption 0% Temperature Cool (15) Movement Walking (400) Ox4 Location -10/Materials Parts ------- > --- POWER (1) -------- Ion Engine > --- PROPULSION (2) --- Aluminum Leg Aluminum Leg > --- UTILITY (2) ------ Huge Storage Unit Core Shielding > --- WEAPON (2) ------- Light Assault Rifle > --- INVENTORY (25) --- Ion Engine Light Treads Light Treads Aluminum Leg Small Storage Unit Signal Interpreter Signal Interpreter Signal Interpreter Terrain Scanner Core Shielding Medium Laser Peak State ------------ > --- POWER ------------ Ion Engine > --- PROPULSION ------- Aluminum Leg Aluminum Leg > --- UTILITY ---------- Huge Storage Unit Core Shielding > --- WEAPON ----------- Assault Rifle Light Assault Rifle > --- INVENTORY -------- Ion Engine Light Treads Light Treads Aluminum Leg Small Storage Unit Signal Interpreter Signal Interpreter Terrain Scanner Core Shielding Medium Laser [Rating: 8] Favorites ----------- Power Light Ion Engine Engine Light Ion Engine Propulsion Aluminum Leg Leg Aluminum Leg Utility Small Storage Unit Storage Small Storage Unit Protection Core Shielding Weapon Light Assault Rifle Ballistic Gun Light Assault Rifle Build | -11 -10 ------- Run | Yrd Mat Slots Evolved . | . . Power . | . . Propulsion . | . . Utility . | . . Weapon . | . . Parts Attached 13 | 6 7 Power 2 | 1 1 Engine 2 | 1 1 Core . | . . Reactor . | . . Propulsion 5 | 2 3 Treads . | . . Leg 5 | 2 3 Wheel . | . . Hover . | . . Flight . | . . Utility 4 | 1 3 Device . | . . Storage 3 | 1 2 Processor . | . . Hackware . | . . Protection 1 | . 1 Artifact . | . . Weapon 2 | 2 . Energy Gun . | . . Energy Cannon . | . . Ballistic Gun 2 | 2 . Ballistic Cannon . | . . Launcher . | . . Special Weapon . | . . Impact Weapon . | . . Slashing Weapon . | . . Piercing Weapon . | . . Special Melee Weapon . | . . Unidentified Prototypes . | . . Parts Lost 3 | . 3 Power 1 | . 1 Propulsion 1 | . 1 Utility . | . . Weapon 1 | . 1 Highest Loss Streak 1 | . 1 To Critical Strikes . | . . Average Backups 6 | 3 7 Power 1 | . 1 Propulsion 2 | 1 2 Utility 1 | . 2 Weapon 1 | . 1 Tool/Special . | . . Unused Backups 8 | . 8 Power 1 | . 1 Propulsion 2 | . 2 Utility 3 | . 3 Weapon 2 | . 2 Tool/Special . | . . Average Slot Usage (%) 92 | . 92 Engine 13 | . 13 Leg 28 | . 28 Storage 14 | . 14 Protection 7 | . 7 Ballistic Gun 27 | . 27 Peak Build Rating 8 | 6 8 Average Rating 6 | 5 6 On Entrance 3 | . 6 Avg Prop Armor Cover (%) . | . . Naked Turns . | . . Heaviest Build 89 | 11 89 Greatest Support 20 | 20 20 Greatest Overweight (x) 4 | 2 4 Average Overweight (x) . | . 1 Largest Inventory Capacity 25 | 8 25 Average Capacity 13 | 7 15 Most Carried 11 | 4 11 Average Carried 6 | 3 7 Final Capacity 25 | 8 25 Final Carried 11 | 4 11 Class Distribution -------------------- 100% | Mutant Dominant Class ---------------- Mutant | -10/Materials Resources | -11 -10 ----------- Run | Yrd Mat Matter Collected 500 | 316 184 Remotely . | . . Salvage Created 415 | 105 310 Parts 20 | 4 16 Haulers Intercepted . | . . Recyclers Shooed 2 | 1 1 Parts Field Recycled . | . . Retrieved Matter . | . . Parts Self-Destructed . | . . Prevented . | . . Parts Restored . | . . Kills | -11 -10 ------- Run | Yrd Mat Combat Hostiles Destroyed 8 | . 8 Guns 8 | . 8 Classes Destroyed 4 | 2 2 Tunneler 3 | 2 1 Recycler 1 | 1 . Swarmer 1 | . 1 Grunt 7 | . 7 Best Kill Streak 3 | 2 3 Combat Bots Only 3 | . 3 Max Kills in Single Turn 1 | 1 1 Gunslinging . | . . Exploded . | . . Melee . | . . Uniques/NPCs Destroyed . | . . Combat | -11 -10 -------- Run | Yrd Mat Hostile Shots Fired 73 | . 73 Missed 18 | . 18 Hits 55 | . 55 Projectile 55 | . 55 Critical Strikes 2 | . 2 Damage Taken 752 | . 752 Core 252 | . 252 Absorbed by Shields . | . . Redirected to Shielding 12 | . 12 Core Remaining (%) 100 | 100 . Volleys Fired 52 | 22 30 Largest 2 | 2 2 Hottest 40 | 40 40 Shots Fired 99 | 44 55 Gun 99 | 44 55 Cannon . | . . Launcher . | . . Special . | . . Kinetic 99 | 44 55 Thermal . | . . Explosive . | . . Electromagnetic . | . . Robot Hit Streak 9 | 6 9 Robot Miss Streak 4 | 3 4 Penetration Max . | . . Secondary Targets 2 | . 2 Max Gunslinging Chain 1 | . 1 Shots Hit Robots 59 | 27 32 Core Hits 29 | 7 22 Critical Kills . | . . Critical Parts Destroyed 1 | 1 . Critical Strikes 1 | 1 . Destroy 1 | 1 . Melee Attacks . | . . Impact . | . . Slashing . | . . Piercing . | . . Sneak Attacks . | . . Combat Hostiles . | . . Follow-up Attacks . | . . Damage Inflicted 627 | 271 356 Guns 627 | 271 356 Cannons . | . . Explosions . | . . Melee . | . . Ramming . | . . Kinetic 627 | 271 356 Thermal . | . . Explosive . | . . Electromagnetic . | . . Impact . | . . Slashing . | . . Piercing . | . . Highest Corruption . | . . Average Corruption . | . . Corruption Purged . | . . Corruption Blocked . | . . Overload Shots . | . . Overflow Damage . | . . Projectiles . | . . Explosions . | . . Melee . | . . Knockbacks . | . . Impact . | . . Kinetic . | . . Secondary . | . . Self-Inflicted Damage . | . . Shots . | . . Rammed . | . . Targets Rammed . | . . Kicked . | . . Crushed . | . . Highest Temperature 18 | . 18 Average Temperature 8 | . 8 Received Heat Transfer 384 | . 384 Siege Activations . | . . Martial Activations . | . . Shielding Activations . | . . Robots Disrupted . | . . Combat Hostiles . | . . Robots Corrupted . | . . Combat Hostiles . | . . Parts Fried . | . . Impact Corruptions . | . . Robots Melted . | . . Combat Hostiles . | . . Parts Melted . | . . Heat Transferred . | . . Parts Sabotaged . | . . Parts Stolen . | . . Parts Stripped . | . . Power Chain Reactions . | . . Alert | -11 -10 ------- Run | Yrd Mat Maximum Alert Level . | . . Low Security (%) 100 | 100 100 Level 1 . | . . Level 2 . | . . Level 3 . | . . Level 4 . | . . Level 5 . | . . High Security . | . . Max Security . | . . Peak Influence 80 | 10 80 Initial . | . . Average 21 | . 28 Influence Increases 243 | 15 228 Destroy 0b10 Robot/C 160 | . 160 Destroy 0b10 Robot/NC 20 | 15 5 Destroy Leader 40 | . 40 Successful Hack 23 | . 23 Influence Decreases 243 | 15 228 Time Decay 233 | 15 218 Lost Part 10 | . 10 Squads Dispatched 3 | . 3 Investigation 1 | . 1 Extermination . | . . Reinforcement 2 | . 2 Assault . | . . Garrison . | . . Intercept . | . . Searches Triggered . | . . Construction Impeded . | . . Haulers Reinforced . | . . Active Scanning Responses . | . . Cargo Convoy Interrupts . | . . Stealth | -11 -10 --------- Run | Yrd Mat Distress Signals 2 | . 2 Communications Jammed . | . . Distress Signals . | . . Times Spotted 21 | . 21 Peak Tracking Total 6 | . 6 Tactical Retreats . | . . Traps | -11 -10 ------- Run | Yrd Mat Traps Triggered . | . . Indirectly . | . . Trap Hack Attempts . | . . Triggered . | . . Disarmed . | . . Reprogrammed . | . . Reused . | . . Traps Extracted . | . . Installed . | . . Triggered . | . . Machines | -11 -10 ---------- Run | Yrd Mat Machines Disabled . | . . Max in Single Turn . | . . Machines Repaired . | . . Machines Dismantled . | . . Machines Sabotaged . | . . Overloaded Fab Kills . | . . Hacking | -11 -10 --------- Run | Yrd Mat Machines Accessed 3 | . 3 Terminals 3 | . 3 Fabricators . | . . Repair Stations . | . . Recycling Units . | . . Scanalyzers . | . . Garrison Access . | . . Total Hacks 13 | . 13 Successful 6 | . 6 Failed 7 | . 7 Catastrophic 1 | . 1 Database Lockouts . | . . Manual 12 | . 12 Terminals 13 | . 13 Fabricators . | . . Repair Stations . | . . Recycling Units . | . . Scanalyzers . | . . Garrison Access . | . . Terminal Hacks 6 | . 6 Robot Analysis 1 | . 1 Prototype ID Bank 1 | . 1 Branch Access Points 1 | . 1 Locate Traps 2 | . 2 Zone Layout 1 | . 1 Fabricator Hacks . | . . Repair Station Hacks . | . . Recycling Unit Hacks . | . . Scanalyzer . | . . Garrison Access Hacks . | . . Unauthorized Hacks . | . . Terminals . | . . Fabricators . | . . Repair Stations . | . . Recycling Units . | . . Scanalyzers . | . . Garrison Access . | . . Data Cores Recovered . | . . Used . | . . Hacking Detections 3 | . 3 Full Trace Events 1 | . 1 Feedback Events . | . . Feedback Blocked . | . . Robot Schematics Acquired . | . . Robots Built . | . . Authchips . | . . Time . | . . Total Robot Build Rating . | . . Part Schematics Acquired . | . . Parts Built . | . . Authchips . | . . Time . | . . Total Part Build Rating . | . . Part Studies Acquired . | . . Parts Repaired . | . . Time . | . . Parts Recycled . | . . Recycled Matter . | . . Retrieved Matter . | . . Retrieved Components . | . . Parts Scanalyzed . | . . Part Schematics Acquired . | . . Parts Damaged . | . . Bothacking | -11 -10 ------------ Run | Yrd Mat Used RIF Installer . | . . Robots Hacked . | . . Non-combat . | . . Combat . | . . Robot Hacks Applied . | . . Relay Couplers Released . | . . Fabnet Peak Effective % . | . . Robots Rewired . | . . Allies Hacked . | . . Hacks Repelled . | . . Allies | -11 -10 -------- Run | Yrd Mat Total Allies . | . . Largest Group . | . . Highest-Rated Group . | . . Highest-Rated Ally . | . . Total Orders . | . . Ally Attacks . | . . Total Damage . | . . Kills . | . . Allies Corrupted . | . . Allies Melted . | . . Intel | -11 -10 ------- Run | Yrd Mat Active Infowar (turns) . | . . Robot Analysis Total 1 | . 1 Derelict Logs Recovered . | . . Drone Launches . | . . Drone Recoveries . | . . Exploration | -11 -10 ------------- Run | Yrd Mat Turns Passed 712 | 175 537 Spaces Moved 298 | 85 213 Core 6 | 6 . Treads . | . . Legs 292 | 79 213 Wheels . | . . Hover . | . . Flight . | . . Fastest Speed 50 | 50 120 Average Speed 170 | 118 191 Slowest Speed 400 | 150 400 Overloaded Moves . | . . Propulsion Burnouts . | . . Robots Hopped . | . . Potential Cave-ins . | . . Cave-ins Triggered . | . . Exploration Rate (%) 25 | 5 46 Regions Visited 1 Branch Regions . Pre-discovered Areas . | . . Known Exits Taken . | . . Unknown Exits Taken 1 | 1 . Scrap Searched . | . . Spaces Dug . | . . Terrain Destroyed . | . . Melee . | . . Projectile . | . . AOE . | . . Terrain Rammed . | . . Walls Destroyed . | . . Machines Disabled . | . . Actions | -11 -10 --------- Run | Yrd Mat Total 412 | 118 294 Wait 30 | . 30 Move 297 | 84 213 Hop . | . . Pick Up 15 | 6 9 Fast Attach 6 | 4 2 Attach 4 | 2 2 Detach 1 | . 1 Swap 3 | . 3 Drop 4 | . 4 Fire 52 | 22 30 Melee . | . . Ram . | . . Kick . | . . Crush . | . . Escape Stasis . | . . Rewire . | . . Trap . | . . Miscellaneous . | . . Route ------- -11/Scrapyard -10/Materials (discovered 3 exits: [*Mat x2] / Min) History --------- Turn | Location | Event 8 | -11/Scrapyard | Discovered new exit (range 15) 176 | -11/Scrapyard | Entered Materials 310 | -10/Materials | Build established: Mutant 372 | -10/Materials | Core integrity fell below 50% 450 | -10/Materials | Discovered new exit (range 16) 457 | -10/Materials | Discovered new exit (range 17) 457 | -10/Materials | Identified exit to Mines 565 | -10/Materials | Core integrity fell below 20% 713 | -10/Materials | Destroyed by G-34 Mercenary with Small Laser Last Messages --------------- 00664_ U-05 Engineer works on Hadron Collector. 00669_ K-01 Serf collects debris. 00670_ U-05 Engineer works on Hadron Collector. 00675_ K-01 Serf collects debris. 00677_ U-05 Engineer works on Hadron Collector. 00679_ U-05 Engineer completes Hadron Collector. 00679_ K-01 Serf collects debris. 00680_ Acquired Signal Interpreter. 00686_ Hadron Collector comes online. 00686_ U-05 Engineer works on Hadron Collector. 00686_ K-01 Serf cleans the Matter Pump. 00687_ U-05 Engineer works on Hadron Collector. 00690_ K-01 Serf cleans the Terminal. 00692_ K-01 Serf cleans the Matter Pump. 00694_ K-01 Serf collects debris. 00695_ K-01 Serf cleans the Matter Pump. 00698_ Critical hit (Burn: +37). 00699_ K-01 Serf cleans the Matter Pump. 00704_ Assault Rifle destroyed. 00704_ Critical hit (Burn: +37). Map ----- +----------------------------------------------------+ | ?????????????????????????????????????????????????? | | ?????????????????????????????????????????????????? | | ?????????????????????????????????????????????????? | | ?????????????????????????????????????????????????? | | ?????????????????????????????????????????????????? | | ???????>?????????????????????????????????????????? | | ?????????????????????????????????????????????????? | | ?????????????????????????????????????????????????? | | ?????????????????????????????????????????????????? | | ?????????????????????????????????????????????????? | | ?????????????????????????????????????????????????? | | ?????????????????????????????????????????????????? | | ?????????????????????????????????????????????????? | | ?????????????????????????????????????????????????? | | ?????????????????????????????????????????????????? | | ?????????????????????????????????????????????????? | | ?????????????????????????????????????????????????? | | ??????????? ??????????????????? ^ #?????????????? | | ?????????? ?????????????????? #?????????????? | | ?????????? ????????????????? ######????????? | | ?????????? ???????????????? ???????? | | ?????????? "" ??????????????# ???????? | | ??????????? ???????#####?# ???????? | | ???????????? #####?#"""#?# ????? | | ???????????? """" #"T"###"T"### ???? | | ??????????? """" @ g ???? | | ??????? """" o ??? | | ??????? g ! ! k ??? | | ??????? g ! """ ??? | | ??????????# !! """ ??? | | ??????????# r k """ ??? | | ??????????# ??? | | ??????????# """T"""u ####??????? | | ??????????##################### #?????????? | | ??????????????????????????????# #?????##### | | ????????????#########?????????# ####### | | ???????????? #??######## % | | ???????????? #??# # % T | | ???????????? #??# !! # % | | ???????????? #??# ! # ###+######## | | ???????????? #??# !!!# # % ###### | | ???????????? #??# # # # #??? | | ???????????? #??# + # # #??? | | ???????????? #??######## # # #??? | | ???????????? #?????????# # # #??? | | ????????????####+####???####### # # #??? | | ????????????## #????# """ + ########### #??? | | ???????????? #????# "T" # # #??? | | ???????????? " #????# # # "##??? | | ???????????? #????# # # " ???? | +----------------------------------------------------+ Best States ------------- Heat Dissipation 25 Energy Generation 10 Energy Capacity 250 Matter Stores 300 Matter Capacity 300 Sight Range 16 Terrain Scan Density 10 Core Shielding 20 Evasion (%) 55 Item Schematics ----------------- None Robot Schematics ------------------ None Fabricated ------------ Nothing Repaired ---------- Nothing Studied --------- None Alien Tech Used ----------------- None Achievements -------------- None Challenges ------------ None Game ------ Seed StrikeCorruptionArticulator Manual? 0 Play Time 00:09:19 Cumulative 15.2 hours Start 2026.01.22 @ 18:14:53 End 2026.01.22 @ 18:21:50 Sessions 1 Manual Loads 0 Difficulty Rogue Special Mode None Game No. 15 Rogue 9 Adventurer 6 Explorer 0 Win Type - Total 0 Types 0/0/0/0/0/0/0/0/0/0 Lore% 11 Gallery% 15 Achievement% 14 Wizard Run 0 Options --------- Layout 0 ASCII 0 Keyboard 1 Movement Numpad Keybinds 0 Fullscreen 1 Font 24/Smallcaps Map View 76x50 Zoom Use 0% Tactical HUD 1 Map Filters NONE Filters NONE Steam 1 RUN: f2282b91-629f-4cc8-96ac-04270db21c27